[Event "NJSK 2023 Jeugd B"]
[Site "Almelo, Netherlands"]
[Date "2023.05.05"]
[Round "6.2"]
[White "Van Foreest, Nanne"]
[Black "Smeets, Kobe"]
[Result "0-1"]
[TimeControl "90min/40moves + 30min + 30sec/move"]
[WhiteElo "1893"]
[BlackElo "2094"]

1. e4 {[%clk 01:30:58]} {[%emt 00:00:01]} c5 {[%clk 01:30:55]} {[%emt
00:00:05]} 2. Nf3 {[%clk 01:31:25]} {[%emt 00:00:04]} e6 {[%clk 01:31:20]}
{[%emt 00:00:05]} 3. d4 {[%clk 01:31:51]} {[%emt 00:00:03]} cxd4 {[%clk
01:31:38]} {[%emt 00:00:12]} 4. Nxd4 {[%clk 01:32:19]} {[%emt 00:00:02]} Nc6
{[%clk 01:32:00]} {[%emt 00:00:08]} 5. Nc3 {[%clk 01:32:47]} {[%emt 00:00:03]}
Qc7 {[%clk 01:32:21]} {[%emt 00:00:08]} 6. g3 {[%clk 01:33:12]} {[%emt
00:00:04]} a6 {[%clk 01:32:43]} {[%emt 00:00:11]} 7. Bg2 {[%clk 01:33:35]}
{[%emt 00:00:06]} Nf6 {[%clk 01:33:01]} {[%emt 00:00:11]} 8. O-O {[%clk
01:33:55]} {[%emt 00:00:09]} Nxd4 {[%clk 01:33:22]} {[%emt 00:00:10]} 9. Qxd4
{[%clk 01:34:20]} {[%emt 00:00:06]} Bc5 {[%clk 01:33:44]} {[%emt 00:00:07]} 10.
Bf4 {[%clk 01:34:47]} {[%emt 00:00:03]} d6 {[%clk 01:34:02]} {[%emt 00:00:12]}
11. Qd2 {[%clk 01:35:10]} {[%emt 00:00:07]} h6 {[%clk 01:34:12]} {[%emt
00:00:20]} 12. Rad1 {[%clk 01:32:48]} {[%emt 00:02:53]} e5 {[%clk 01:34:35]}
{[%emt 00:00:07]} 13. Be3 {[%clk 01:33:16]} {[%emt 00:00:02]} Bxe3 {[%clk
01:30:09]} {[%emt 00:04:56]} 14. fxe3 {[%clk 01:33:37]} {[%emt 00:00:07]} Be6
{[%clk 01:30:35]} {[%emt 00:00:05]} 15. Qxd6 {[%clk 01:33:55]} {[%emt
00:00:12]} Rc8 {[%clk 01:31:02]} {[%emt 00:00:04]} 16. Qxc7 {[%clk 01:31:28]}
{[%emt 00:02:55]} Rxc7 {[%clk 01:31:30]} {[%emt 00:00:03]} 17. Rd2 {[%clk
01:30:10]} {[%emt 00:01:49]} Ke7 {[%clk 01:31:53]} {[%emt 00:00:06]} 18. Nd5+
{[%clk 01:30:04]} {[%emt 00:00:36]} Bxd5 {[%clk 01:32:16]} {[%emt 00:00:07]} 19.
exd5 {[%clk 01:30:28]} {[%emt 00:00:05]} Ne8 {[%clk 01:32:42]} {[%emt
00:00:04]} 20. b3 {[%clk 01:26:08]} {[%emt 00:04:51]} Rc3 {[%clk 01:30:58]}
{[%emt 00:02:13]} 21. Rc1 {[%clk 01:19:44]} {[%emt 00:06:55]} Nd6 {[%clk
01:29:34]} {[%emt 00:01:54]} 22. Rd3 {[%clk 01:19:25]} {[%emt 00:00:50]} Rhc8
{[%clk 01:29:28]} {[%emt 00:00:35]} 23. Rxc3 {[%clk 01:19:31]} {[%emt
00:00:24]} Rxc3 {[%clk 01:29:56]} {[%emt 00:00:02]} 24. e4 {[%clk 01:13:39]}
{[%emt 00:06:22]} Nb5 {[%clk 01:29:24]} {[%emt 00:01:02]} 25. Bf1 {[%clk
01:13:37]} {[%emt 00:00:33]} Nd4 {[%clk 01:29:36]} {[%emt 00:00:17]} 26. Kf2
{[%clk 01:12:16]} {[%emt 00:01:51]} Rxc2+ {[%clk 01:19:45]} {[%emt 00:10:21]}
27. Rxc2 {[%clk 01:12:40]} {[%emt 00:00:07]} Nxc2 {[%clk 01:20:09]} {[%emt
00:00:05]} 28. Bc4 {[%clk 01:12:28]} {[%emt 00:00:42]} Kd6 {[%clk 01:14:40]}
{[%emt 00:05:59]} 29. Bd3 {[%clk 01:11:02]} {[%emt 00:01:56]} Nb4 {[%clk
01:12:31]} {[%emt 00:02:38]} 30. Bb1 {[%clk 01:11:31]} {[%emt 00:00:02]} a5
{[%clk 01:12:45]} {[%emt 00:00:16]} 31. Ke3 {[%clk 01:11:20]} {[%emt 00:00:40]}
Na6 {[%clk 01:11:51]} {[%emt 00:01:25]} 32. g4 {[%clk 01:09:30]} {[%emt
00:02:19]} Kc5 {[%clk 01:10:35]} {[%emt 00:01:47]} 33. Bd3 {[%clk 01:09:11]}
{[%emt 00:00:49]} Nc7 {[%clk 01:10:56]} {[%emt 00:00:09]} 34. Be2 {[%clk
00:57:15]} {[%emt 00:12:27]} Kb4 {[%clk 00:53:56]} {[%emt 00:17:29]} 35. Bc4
{[%clk 00:56:56]} {[%emt 00:00:49]} Ne8 {[%clk 00:53:58]} {[%emt 00:00:27]} 36.
a4 {[%clk 00:56:59]} {[%emt 00:00:29]} Kc3 {[%clk 00:53:30]} {[%emt 00:00:57]}
37. Bb5 {[%clk 00:56:44]} {[%emt 00:00:46]} Nd6 {[%clk 00:53:45]} {[%emt
00:00:14]} 38. Bc4 {[%clk 00:57:13]} {[%emt 00:00:01]} g5 {[%clk 00:47:07]}
{[%emt 00:07:08]} 39. h3 {[%clk 00:54:21]} {[%emt 00:03:23]} b6 {[%clk
00:47:17]} {[%emt 00:00:19]} 40. Ke2 {[%clk 00:54:38]} {[%emt 00:00:13]} Nxe4
{[%clk 00:46:26]} {[%emt 00:01:21]} 41. Ke3 {[%clk 00:50:39]} {[%emt 00:04:29]}
Nd6 {[%clk 00:46:33]} {[%emt 00:00:22]} 42. Ke2 {[%clk 00:50:58]} {[%emt
00:00:12]} Kd4 {[%clk 00:46:48]} {[%emt 00:00:14]} 43. Kd2 {[%clk 00:51:09]}
{[%emt 00:00:20]} f5 {[%clk 00:45:52]} {[%emt 00:01:26]} 44. gxf5 {[%clk
00:49:33]} {[%emt 00:02:05]} Nxf5 {[%clk 00:46:14]} {[%emt 00:00:09]} 45. Ke2
{[%clk 00:49:55]} {[%emt 00:00:08]} e4 {[%clk 00:46:13]} {[%emt 00:00:30]} 46.
Kd2 {[%clk 00:50:08]} {[%emt 00:00:18]} Nd6 {[%clk 00:45:17]} {[%emt 00:01:25]}
47. Ke1 {[%clk 00:50:14]} {[%emt 00:00:26]} Ke5 {[%clk 00:45:14]} {[%emt
00:00:31]} 48. Ke2 {[%clk 00:50:30]} {[%emt 00:00:15]} Ne8 {[%clk 00:45:29]}
{[%emt 00:00:14]} 49. Ke3 {[%clk 00:50:36]} {[%emt 00:00:25]} Nd6 {[%clk
00:43:51]} {[%emt 00:02:07]} 50. Ke2 {[%clk 00:50:59]} {[%emt 00:00:07]} Nf5
{[%clk 00:43:43]} {[%emt 00:00:38]} 51. Kf2 {[%clk 00:51:01]} {[%emt 00:00:29]}
Ne7 {[%clk 00:44:04]} {[%emt 00:00:08]} 52. Ke3 {[%clk 00:49:48]} {[%emt
00:01:43]} Nxd5+ {[%clk 00:44:26]} {[%emt 00:00:09]} 0-1

[Event "NJSK 2023 Jeugd B"]
[Site "Almelo, Netherlands"]
[Date "2023.05.05"]
[Round "6.3"]
[White "Van Hesselingen, Guido"]
[Black "Van Arendonk, Polle"]
[Result "1-0"]
[TimeControl "90min/40moves + 30min + 30sec/move"]
[WhiteElo "1924"]
[BlackElo "1772"]

1. e4 {[%clk 01:30:56]} {[%emt 00:00:04]} e6 {[%clk 01:30:58]} {[%emt
00:00:03]} 2. d4 {[%clk 01:31:20]} {[%emt 00:00:06]} d5 {[%clk 01:31:25]}
{[%emt 00:00:03]} 3. Nd2 {[%emt 00:00:13]} c5 {[%clk 01:31:52]} 4. Ngf3 {[%clk
01:32:08]} {[%emt 00:00:02]} cxd4 {[%clk 01:31:55]} {[%emt 00:00:27]} 5. Nxd4
{[%clk 01:32:30]} {[%emt 00:00:08]} Nc6 {[%clk 01:32:22]} {[%emt 00:00:03]} 6.
Nxc6 {[%clk 01:30:20]} {[%emt 00:02:40]} bxc6 {[%clk 01:32:51]} {[%emt
00:00:02]} 7. Bd3 {[%clk 01:29:21]} {[%emt 00:01:28]} Bd6 {[%clk 01:29:59]}
{[%emt 00:03:22]} 8. O-O {[%clk 01:27:27]} {[%emt 00:02:24]} Qc7 {[%clk
01:29:38]} {[%emt 00:00:51]} 9. h3 {[%clk 01:18:37]} {[%emt 00:09:19]} Bd7
{[%clk 01:24:58]} {[%emt 00:05:11]} 10. exd5 {[%clk 01:12:38]} {[%emt
00:06:29]} cxd5 {[%clk 01:19:59]} {[%emt 00:05:29]} 11. c4 {[%clk 01:09:18]}
{[%emt 00:03:50]} Nf6 {[%clk 01:15:02]} {[%emt 00:05:28]} 12. cxd5 {[%clk
00:59:51]} {[%emt 00:09:57]} Nxd5 {[%clk 01:15:22]} {[%emt 00:00:09]} 13. Nc4
{[%clk 00:58:38]} {[%emt 00:01:43]} Bc5 {[%clk 01:12:50]} {[%emt 00:03:03]} 14.
Qg4 {[%clk 00:54:13]} {[%emt 00:04:53]} Kf8 {[%clk 01:00:52]} {[%emt 00:12:29]}
15. Bd2 {[%clk 00:44:30]} {[%emt 00:10:13]} f5 {[%clk 00:49:07]} {[%emt
00:12:15]} 16. Qe2 {[%clk 00:40:26]} {[%emt 00:04:34]} Bd4 {[%clk 00:39:38]}
{[%emt 00:10:00]} 17. Rac1 {[%clk 00:37:42]} {[%emt 00:03:13]} Kf7 {[%clk
00:32:49]} {[%emt 00:07:19]} 18. Qf3 {[%clk 00:27:24]} {[%emt 00:10:48]} Bc6
{[%clk 00:24:34]} {[%emt 00:08:46]} 19. Na5 {[%clk 00:23:32]} {[%emt 00:04:21]}
Nc3 {[%clk 00:12:42]} {[%emt 00:12:22]} 20. Nxc6 {[%clk 00:19:37]} {[%emt
00:04:25]} Nxa2 {[%clk 00:12:53]} {[%emt 00:00:19]} 21. Ra1 {[%clk 00:19:22]}
{[%emt 00:00:45]} 1-0

[Event "NJSK 2023 Jeugd B"]
[Site "Almelo, Netherlands"]
[Date "2023.05.05"]
[Round "6.4"]
[White "Bakija, Alan"]
[Black "Ritzerveld, Noah"]
[Result "1-0"]
[TimeControl "90min/40moves + 30min + 30sec/move"]
[WhiteElo "1999"]
[BlackElo "1776"]

1. c4 {[%clk 01:30:57]} {[%emt 00:00:02]} e5 {[%clk 01:30:54]} {[%emt
00:00:07]} 2. g3 {[%clk 01:31:24]} {[%emt 00:00:03]} c6 {[%clk 01:31:03]}
{[%emt 00:00:21]} 3. Nf3 {[%clk 01:31:42]} {[%emt 00:00:11]} e4 {[%clk
01:31:26]} {[%emt 00:00:08]} 4. Nd4 {[%clk 01:32:07]} {[%emt 00:00:04]} d5
{[%clk 01:31:46]} {[%emt 00:00:11]} 5. cxd5 {[%clk 01:32:33]} {[%emt 00:00:05]}
Qxd5 {[%clk 01:31:59]} {[%emt 00:00:18]} 6. Nc2 {[%clk 01:32:51]} {[%emt
00:00:11]} Nf6 {[%clk 01:32:09]} {[%emt 00:00:19]} 7. Nc3 {[%clk 01:33:04]}
{[%emt 00:00:17]} Qe5 {[%clk 01:32:25]} {[%emt 00:00:15]} 8. Bg2 {[%clk
01:33:21]} {[%emt 00:00:10]} Na6 {[%clk 01:32:14]} {[%emt 00:00:43]} 9. d4
{[%clk 01:33:38]} {[%emt 00:00:13]} exd3 {[%clk 01:28:59]} {[%emt 00:03:45]} 10.
Qxd3 {[%clk 01:33:47]} {[%emt 00:00:21]} Bf5 {[%clk 01:18:44]} {[%emt
00:10:45]} 11. Bxc6+ {[%clk 01:33:15]} {[%emt 00:01:02]} bxc6 {[%clk 01:11:47]}
{[%emt 00:07:28]} 12. Qxa6 {[%clk 01:33:39]} {[%emt 00:00:05]} Be4 {[%clk
01:05:55]} {[%emt 00:06:22]} 13. Bf4 {[%clk 01:17:49]} {[%emt 00:16:18]} Qc5
{[%clk 00:44:33]} {[%emt 00:21:54]} 14. Nxe4 {[%clk 01:09:18]} {[%emt
00:09:01]} Nxe4 {[%clk 00:44:52]} {[%emt 00:00:11]} 15. O-O {[%clk 01:08:08]}
{[%emt 00:01:39]} Bd6 {[%clk 00:31:20]} {[%emt 00:14:04]} 16. Bxd6 {[%clk
01:02:02]} {[%emt 00:06:36]} Qxd6 {[%clk 00:30:23]} {[%emt 00:01:27]} 17. Rad1
{[%clk 00:59:06]} {[%emt 00:03:24]} Qg6 {[%clk 00:19:47]} {[%emt 00:11:07]} 18.
Nd4 {[%clk 00:56:54]} {[%emt 00:02:42]} O-O {[%clk 00:17:07]} {[%emt 00:03:10]}
19. Qxc6 {[%clk 00:57:02]} {[%emt 00:00:22]} Nf6 {[%clk 00:16:05]} {[%emt
00:01:32]} 20. Qc2 {[%clk 00:55:35]} {[%emt 00:01:57]} Qh6 {[%clk 00:14:03]}
{[%emt 00:02:33]} 21. Qf5 {[%clk 00:48:36]} {[%emt 00:07:28]} Rab8 {[%clk
00:11:58]} {[%emt 00:02:34]} 22. b3 {[%clk 00:48:20]} {[%emt 00:00:46]} a6
{[%clk 00:11:35]} {[%emt 00:00:54]} 23. e3 {[%clk 00:47:31]} {[%emt 00:01:18]}
Rb6 {[%clk 00:09:26]} {[%emt 00:02:40]} 24. Rc1 {[%clk 00:46:19]} {[%emt
00:01:44]} g6 {[%clk 00:06:58]} {[%emt 00:02:56]} 25. Qf3 {[%clk 00:46:13]}
{[%emt 00:00:35]} Nd7 {[%clk 00:05:20]} {[%emt 00:02:10]} 26. Rc7 {[%clk
00:36:45]} {[%emt 00:09:57]} Ne5 {[%clk 00:04:26]} {[%emt 00:01:24]} 27. Qf4
{[%clk 00:34:49]} {[%emt 00:02:25]} Qh5 {[%clk 00:04:44]} {[%emt 00:00:13]} 28.
Kg2 {[%clk 00:32:54]} {[%emt 00:02:24]} Nd3 {[%clk 00:03:51]} {[%emt 00:01:24]}
29. Qe4 {[%clk 00:31:30]} {[%emt 00:01:53]} Nb4 {[%clk 00:03:12]} {[%emt
00:01:11]} 30. a3 {[%clk 00:27:16]} {[%emt 00:04:43]} Nd5 {[%clk 00:03:04]}
{[%emt 00:00:39]} 31. Rc2 {[%clk 00:27:20]} {[%emt 00:00:23]} Rf6 {[%clk
00:02:00]} {[%emt 00:01:36]} 32. g4 {[%clk 00:25:44]} {[%emt 00:02:06]} Qg5
{[%clk 00:01:49]} {[%emt 00:00:41]} 33. Nf3 {[%clk 00:25:39]} {[%emt 00:00:34]}
Nf4+ {[%clk 00:01:34]} {[%emt 00:00:47]} 34. Kg3 {[%clk 00:15:27]} {[%emt
00:10:42]} Nh5+ {[%clk 00:01:36]} {[%emt 00:00:29]} 35. Kh3 {[%clk 00:13:25]}
{[%emt 00:02:31]} Qb5 {[%clk 00:01:28]} {[%emt 00:00:38]} 36. Nd2 {[%clk
00:02:09]} {[%emt 00:11:46]} Ng7 {[%clk 00:00:44]} {[%emt 00:01:14]} 37. Qc4
{[%clk 00:01:49]} {[%emt 00:00:50]} Qb7 {[%clk 00:00:58]} {[%emt 00:00:15]} 38.
Ne4 {[%clk 00:01:49]} {[%emt 00:00:30]} Re6 {[%clk 00:00:47]} {[%emt 00:00:42]}
39. f3 {[%clk 00:00:47]} {[%emt 00:01:32]} Qe7 {[%clk 00:00:31]} {[%emt
00:00:46]} 40. Kg2 {[%clk 00:00:35]} {[%emt 00:00:41]} h5 {[%clk 00:00:35]}
{[%emt 00:00:26]} 41. h3 {[%clk 00:26:25]} {[%emt 00:04:40]} Qxa3 {[%clk
00:22:46]} {[%emt 00:08:19]} 42. Rd1 {[%clk 00:22:31]} {[%emt 00:04:25]} Qe7
{[%clk 00:18:45]} {[%emt 00:04:31]} 43. Rcd2 {[%clk 00:21:59]} {[%emt
00:01:01]} Qa7 {[%clk 00:10:32]} {[%emt 00:08:43]} 44. Qc3 {[%clk 00:17:11]}
{[%emt 00:05:18]} Qe7 {[%clk 00:07:08]} {[%emt 00:03:54]} 45. Rd7 {[%clk
00:14:50]} {[%emt 00:02:52]} Qh4 {[%clk 00:05:54]} {[%emt 00:01:44]} 46. Qe1
{[%clk 00:08:33]} {[%emt 00:06:46]} Qxe1 {[%clk 00:05:16]} {[%emt 00:01:09]} 47.
Rxe1 {[%clk 00:08:56]} {[%emt 00:00:07]} f5 {[%clk 00:02:50]} {[%emt 00:02:56]}
48. Ng5 {[%clk 00:04:29]} {[%emt 00:04:56]} Rb6 {[%clk 00:01:32]} {[%emt
00:01:49]} 49. Red1 {[%clk 00:03:21]} {[%emt 00:01:37]} Rxb3 {[%clk 00:00:49]}
{[%emt 00:01:13]} 50. R1d6 {[%clk 00:03:17]} {[%emt 00:00:34]} Rb2+ {[%clk
00:00:39]} {[%emt 00:00:41]} 51. Kg3 {[%clk 00:01:42]} {[%emt 00:02:05]} Ne8
{[%clk 00:00:33]} {[%emt 00:00:35]} 52. Rxg6+ {[%clk 00:02:01]} {[%emt
00:00:11]} Kh8 {[%clk 00:00:59]} {[%emt 00:00:04]} 53. Rh7# {[%clk 00:01:46]}
{[%emt 00:00:09]} 1-0

[Event "NJSK 2023 Jeugd B"]
[Site "Almelo, Netherlands"]
[Date "2023.05.05"]
[Round "6.5"]
[White "Blom, Rens"]
[Black "Van Egmond, Tom"]
[Result "1/2-1/2"]
[TimeControl "90min/40moves + 30min + 30sec/move"]
[WhiteElo "1747"]
[BlackElo "1767"]

1. c4 {[%clk 01:30:57]} {[%emt 00:00:04]} e5 {[%clk 01:30:56]} {[%emt
00:00:03]} 2. Nc3 {[%clk 01:31:22]} {[%emt 00:00:05]} Nf6 {[%clk 01:31:24]}
{[%emt 00:00:03]} 3. Nf3 {[%clk 01:31:46]} {[%emt 00:00:05]} Nc6 {[%clk
01:31:51]} {[%emt 00:00:05]} 4. a3 {[%clk 01:32:04]} {[%emt 00:00:11]} d5
{[%clk 01:32:06]} {[%emt 00:00:14]} 5. cxd5 {[%clk 01:32:29]} {[%emt 00:00:06]}
Nxd5 {[%clk 01:32:33]} {[%emt 00:00:03]} 6. Qc2 {[%clk 01:32:53]} {[%emt
00:00:06]} Nxc3 {[%clk 01:32:51]} {[%emt 00:00:12]} 7. bxc3 {[%clk 01:32:55]}
{[%emt 00:00:28]} Bd6 {[%clk 01:33:12]} {[%emt 00:00:09]} 8. e3 {[%clk
01:32:58]} {[%emt 00:00:27]} O-O {[%clk 01:33:34]} {[%emt 00:00:08]} 9. d4
{[%clk 01:33:08]} {[%emt 00:00:19]} Bg4 {[%clk 01:33:47]} {[%emt 00:00:17]} 10.
Bd3 {[%clk 01:25:50]} {[%emt 00:07:48]} Kh8 {[%clk 01:30:40]} {[%emt 00:03:38]}
11. h4 {[%clk 01:16:34]} {[%emt 00:09:46]} Bxf3 {[%clk 01:16:57]} {[%emt
00:14:13]} 12. gxf3 {[%clk 01:16:58]} {[%emt 00:00:06]} exd4 {[%clk 01:06:13]}
{[%emt 00:11:13]} 13. cxd4 {[%clk 01:17:12]} {[%emt 00:00:16]} Re8 {[%clk
00:59:32]} {[%emt 00:07:11]} 14. Bb2 {[%clk 01:14:34]} {[%emt 00:03:08]} Qe7
{[%clk 00:42:16]} {[%emt 00:17:47]} 15. Bxh7 {[%clk 00:59:14]} {[%emt
00:15:50]} Bg3 {[%clk 00:32:17]} {[%emt 00:10:28]} 16. O-O-O {[%clk 00:42:36]}
{[%emt 00:17:09]} Bxf2 {[%clk 00:31:29]} {[%emt 00:01:17]} 17. Qxf2 {[%clk
00:42:38]} {[%emt 00:00:28]} Kxh7 {[%clk 00:31:52]} {[%emt 00:00:07]} 18. e4
{[%clk 00:35:05]} {[%emt 00:08:04]} Na5 {[%clk 00:24:12]} {[%emt 00:08:10]} 19.
Rdg1 {[%clk 00:30:58]} {[%emt 00:04:37]} Nc4 {[%clk 00:16:34]} {[%emt
00:08:08]} 20. Qg3 {[%clk 00:29:02]} {[%emt 00:02:26]} Qf6 {[%clk 00:16:19]}
{[%emt 00:00:45]} 21. e5 {[%clk 00:27:03]} {[%emt 00:02:29]} Qh6+ {[%clk
00:15:57]} {[%emt 00:00:52]} 22. f4 {[%clk 00:20:25]} {[%emt 00:07:08]} Nxb2
{[%clk 00:16:23]} {[%emt 00:00:04]} 23. Kxb2 {[%clk 00:20:50]} {[%emt
00:00:05]} Rad8 {[%clk 00:14:58]} {[%emt 00:01:55]} 24. Rd1 {[%clk 00:14:03]}
{[%emt 00:07:17]} Rd5 {[%clk 00:12:31]} {[%emt 00:02:57]} 25. Rh2 {[%clk
00:10:05]} {[%emt 00:04:29]} Qb6+ {[%clk 00:11:43]} {[%emt 00:01:17]} 26. Ka2
{[%clk 00:10:30]} {[%emt 00:00:05]} Rxd4 {[%clk 00:10:52]} {[%emt 00:01:21]} 27.
Rg2 {[%clk 00:10:07]} {[%emt 00:00:53]} Qe6+ {[%clk 00:08:54]} {[%emt
00:02:28]} 28. Kb2 {[%clk 00:10:31]} {[%emt 00:00:06]} Qb6+ {[%clk 00:09:16]}
{[%emt 00:00:08]} 29. Ka2 {[%clk 00:10:43]} {[%emt 00:00:18]} Qe6+ {[%clk
00:05:05]} {[%emt 00:04:41]} 30. Kb2 {[%clk 00:11:07]} {[%emt 00:00:06]} Qb6+
{[%clk 00:05:15]} {[%emt 00:00:19]} 31. Ka2 {[%clk 00:11:26]} {[%emt 00:00:11]}
Qe6+ {[%clk 00:03:47]} {[%emt 00:01:58]} 1/2-1/2